bitfinex/quotes_ETHUSD_20250114
["timestamp","ask_amount","ask_price","bid_price","bid_amount"]
[1736863971703,0.7966,3207.8,3206.5,0.29937693]
[1736863971903,0.7966,3207.6,3206.5,0.29937693]
[1736863972127,0.08498339,3207.5,3206.0,6.86369412]
[1736863972336,0.7966,3207.4,3206.1,0.03118236]
[1736863972537,0.7966,3207.4,3206.2,0.55]
[1736863972737,0.03123854,3207.3,3206.1,0.57583993]
[1736863972936,0.7966,3207.0,3206.1,0.80580963]
[1736863973124,0.7966,3206.6,3206.1,0.80580963]
[1736863973328,0.03123854,3206.5,3206.1,0.80580963]
[1736863973516,0.05284218,3206.5,3206.1,0.80580963]
[1736863973858,0.05284218,3206.5,3206.1,0.51825155]
[1736863974023,0.05284218,3206.5,3206.1,0.28828185]
[1736863974339,0.7966,3206.6,3206.1,0.28828185]
[1736863974529,0.7966,3206.6,3205.9,0.03118733]
[1736863976235,0.7966,3206.6,3205.8,0.31946917]
[1736863976437,0.7966,3206.6,3206.0,0.03118732]
[1736863976603,0.05274478,3206.5,3206.0,0.03118732]
[1736863977429,0.05274478,3206.5,3205.9,0.31946916]
[1736863977818,0.05274478,3206.5,3205.9,0.28828185]
[1736863978053,0.05274478,3206.5,3206.0,0.35384241]
[1736863978371,0.7966,3206.6,3205.9,0.28828185]
[1736863978521,0.7966,3206.6,3206.0,0.782]
[1736863978863,0.05310982,3206.5,3206.0,1.06955808]
[1736863979109,0.05310982,3206.5,3206.1,0.28828185]
[1736863979368,0.05310982,3206.5,3206.1,0.31946632]
[1736863979675,0.05310982,3206.5,3206.1,0.28828185]
[1736863979847,0.7966,3206.6,3206.1,0.28828185]
[1736863980355,0.7966,3206.6,3206.1,0.31946655]
[1736863980566,0.7966,3206.6,3206.1,0.28828185]
[1736863981425,0.03123854,3206.5,3205.9,0.51752778]
[1736863981626,0.0534573,3206.5,3205.9,0.51752778]
[1736863981854,0.08469584,3206.5,3205.9,0.51752778]
[1736863982260,0.0534573,3206.5,3205.9,0.51752778]
[1736863982454,0.0534573,3206.5,3205.6,0.80580963]
[1736863982655,0.0534573,3206.5,3205.7,0.46264585]
[1736863982843,0.0534573,3206.5,3205.8,0.7978]
[1736863983045,0.0534573,3206.5,3205.9,0.03118698]
[1736863983427,0.8042,3206.9,3205.9,0.03118698]
[1736863983632,0.8042,3206.9,3206.0,0.28755808]
[1736863983825,0.05320769,3206.8,3206.0,0.6923523]
[1736863984154,0.8042,3206.7,3206.0,0.28755808]
[1736863984362,0.03123854,3206.6,3206.0,0.28755808]
[1736863984527,0.08430256,3206.6,3206.0,0.28755808]
[1736863984868,0.08430256,3206.6,3205.9,0.28828185]
[1736863985162,0.8042,3206.7,3206.0,0.03118786]
[1736863985406,0.8042,3206.7,3206.0,0.31946971]
[1736863986665,0.8042,3206.7,3206.1,0.28828185]
[1736863986863,0.8042,3206.7,3206.2,0.03118551]
[1736863987026,0.8042,3207.0,3206.4,2.96258412]
[1736863987365,0.8042,3207.6,3206.5,0.32743925]
[1736863987552,0.83543854,3207.6,3206.5,0.32743925]
[1736863987755,0.05371315,3207.5,3206.5,0.32743925]
[1736863988552,0.05371315,3207.5,3207.0,2.96258412]
[1736863988929,0.8042,3207.4,3206.7,2.96258412]
[1736863989222,0.8042,3207.4,3206.7,0.40566425]
[1736863989454,0.8042,3207.4,3206.7,2.99376327]
[1736863989660,0.8042,3207.4,3206.7,2.96258412]
[1736863989968,0.8042,3207.4,3206.8,0.03117754]
[1736863990173,0.8042,3208.0,3206.8,0.03117754]
[1736863990541,0.8042,3208.0,3206.7,2.99375908]
[1736863990742,0.05430898,3207.9,3206.8,0.29937591]
[1736863990941,0.08554752,3207.9,3206.8,0.29937591]
[1736863991680,0.08554752,3207.9,3207.3,2.96258412]
[1736863991851,0.05430898,3207.9,3207.4,0.03117362]
[1736863992061,0.8042,3208.1,3207.4,0.03117362]
[1736863992370,0.8042,3208.1,3207.5,0.29937577]
[1736863992734,0.8042,3208.1,3207.5,0.33054683]
[1736863993448,0.8042,3208.1,3207.0,2.96258412]
[1736863993766,0.05554911,3208.0,3207.0,2.96258412]
[1736863994273,0.08678765,3208.0,3207.0,2.96258412]
[1736863994906,0.05554911,3208.0,3207.7,3.11749]
[1736863995167,0.8042,3208.5,3207.6,2.96258412]
[1736863995490,0.8042,3208.5,3207.5,0.7978]
[1736863995491,0.8042,3208.5,3207.7,0.37603841]
[1736863995778,3.0,3208.9,3207.1,3.88517]
[1736863995779,0.8327,3208.3,3207.1,3.88517]
[1736863996066,0.8327,3208.3,3207.2,0.55]
[1736863996364,0.05402382,3208.2,3207.4,3.60997509]
[1736863996895,0.8327,3208.3,3207.4,3.60997509]
[1736863997372,0.0536143,3208.2,3207.4,3.60997509]
[1736863997572,0.0536143,3208.2,3207.5,0.65725592]
[1736863997873,0.8327,3208.3,3207.5,0.65725592]
[1736863998253,0.05361314,3208.2,3207.5,0.65725592]
[1736863998572,0.8327,3208.3,3207.5,0.65725592]
[1736863999297,0.05358864,3208.2,3207.5,0.65725592]
[1736863999435,0.05358864,3208.2,3207.6,0.4267231]
[1736863999639,0.8327,3208.3,3207.6,0.4267231]
[1736863999949,0.05353964,3208.2,3207.6,0.4267231]
[1736864000372,0.03123854,3208.2,3207.1,0.7671]
[1736864000669,0.8327,3208.1,3206.5,0.7671]
[1736864000869,0.86393854,3208.0,3206.5,0.79827752]
[1736864001072,3.03123854,3208.0,3206.5,0.7671]
[1736864001248,3.03123854,3208.0,3206.3,0.00568568]
[1736864001249,3.0,3207.7,3206.3,0.00568568]
[1736864001453,0.8327,3207.5,3206.4,0.6283664]
[1736864001642,0.86393854,3207.4,3206.3,0.00568568]
[1736864001977,0.91720899,3207.4,3206.3,0.23554244]
[1736864002171,0.91720899,3207.4,3206.4,0.28733819]
[1736864002352,0.86393854,3207.4,3206.4,0.28733819]
[1736864002550,0.05307327,3207.3,3206.4,0.28733819]
[1736864002961,0.86393854,3207.4,3206.4,0.28733819]
[1736864003263,0.86393854,3207.4,3206.4,0.46309548]
[1736864003568,0.05335747,3207.3,3206.4,0.46309548]
[1736864003775,0.8327,3207.2,3206.4,0.46309548]
[1736864004136,0.05321388,3207.1,3206.4,0.46309548]
[1736864004355,0.8327,3207.2,3206.4,0.46309548]
[1736864004748,0.05321388,3207.1,3206.4,0.46309548]
[1736864005179,0.8327,3207.2,3206.4,0.46309548]
[1736864005533,0.05306572,3207.1,3206.4,0.46309548]
[1736864005738,0.8327,3207.2,3206.5,0.03118071]
[1736864005977,0.8327,3207.2,3206.6,0.34568603]
[1736864006888,0.8327,3207.2,3206.7,0.03118071]
[1736864007182,0.8327,3207.2,3206.6,0.34568603]
[1736864008435,0.8327,3207.2,3206.4,0.17575729]
[1736864008640,0.8327,3207.2,3206.3,0.00568568]
[1736864008844,0.8327,3207.2,3206.3,0.03686833]
[1736864009076,0.05125253,3207.1,3206.3,0.26689125]
[1736864009981,0.05125253,3207.1,3206.4,0.28751184]
[1736864010161,0.05125253,3207.1,3206.5,0.03118079]
[1736864011782,0.05125253,3207.1,3206.4,0.51751591]
[1736864012014,0.05125253,3207.1,3206.5,0.03118079]
[1736864012309,0.8327,3207.2,3206.5,0.03118079]
[1736864012608,0.05112883,3207.1,3206.4,0.51751591]
[1736864012771,0.05112883,3207.1,3206.5,0.28749299]
[1736864012971,0.05112883,3207.1,3206.6,0.03118079]
[1736864013172,0.8327,3207.2,3206.6,0.03118079]
[1736864013471,0.0510553,3207.1,3206.6,0.03118079]
[1736864013697,0.0510553,3207.1,3206.5,0.28749299]
[1736864013974,0.0510553,3207.1,3206.3,0.03686646]
[1736864014287,0.0510553,3207.1,3206.4,0.48051783]
[1736864014608,0.0510553,3207.1,3206.5,0.03118078]
[1736864014774,0.0510553,3207.1,3206.5,0.23021273]
[1736864014976,0.0510553,3207.1,3206.5,0.26139351]
[1736864015211,0.8327,3207.2,3206.5,0.26139351]
[1736864015526,0.05050068,3207.1,3206.5,0.26139351]
[1736864015823,0.05050068,3207.1,3206.5,0.03118078]
[1736864016325,0.05050068,3207.1,3206.4,0.03118078]
[1736864016689,0.8327,3207.2,3206.4,0.03118078]
[1736864017104,0.05047617,3207.1,3206.3,0.46605923]
[1736864017307,0.8327,3207.2,3206.5,0.28785794]
[1736864017476,0.8165,3207.5,3206.7,2.96258412]
[1736864017680,0.8165,3207.5,3206.5,1.11605794]
[1736864017874,0.8165,3207.5,3206.6,0.03117626]
[1736864018073,0.8165,3207.5,3206.8,0.8282]
[1736864018374,0.8165,3208.0,3207.0,2.96258412]
[1736864018574,0.8165,3208.0,3207.1,0.03117259]
[1736864019309,0.05111693,3207.9,3207.1,2.99375671]
[1736864019537,0.8165,3208.0,3207.1,2.99375671]
[1736864020056,0.05119312,3207.9,3207.1,2.99375671]
[1736864020356,0.05119312,3207.9,3207.2,0.65437567]
[1736864020501,0.05119312,3207.9,3207.3,0.03117194]
[1736864021147,0.05119312,3207.9,3207.5,0.8282]
[1736864021331,0.8165,3208.3,3207.6,0.03117006]
[1736864021540,0.8165,3208.3,3207.7,2.96258412]
[1736864021739,1.0725,3209.0,3207.8,0.33054247]
[1736864022018,0.0525628,3208.9,3207.8,0.33054247]
[1736864022247,0.0525628,3208.9,3208.0,2.96258412]
[1736864023003,0.0525628,3208.9,3207.8,0.29937542]
[1736864024636,0.8165,3208.7,3207.2,0.65437567]
[1736864024841,3.01514692,3208.9,3207.2,0.65437567]
[1736864024842,3.0,3208.5,3207.2,0.65437567]
[1736864025160,0.8687444,3208.4,3207.3,0.0311755]
[1736864025324,0.8687444,3208.4,3207.4,3.79438412]
[1736864025520,0.8687444,3208.4,3207.5,0.03116939]
[1736864026666,0.8687444,3208.4,3207.3,0.55]
[1736864027723,0.8687444,3208.4,3207.4,0.03116938]
[1736864028177,0.8687444,3208.4,3207.5,0.55]
[1736864028473,0.8687444,3208.4,3207.7,2.96258412]
[1736864028675,0.8687444,3208.4,3207.8,0.03116738]
[1736864028880,0.8165,3208.4,3207.8,0.03116738]
[1736864029176,0.8029,3209.5,3208.3,2.96258412]
[1736864029361,0.8029,3209.3,3208.4,0.03116248]
[1736864029672,0.05279458,3209.2,3208.5,0.29937466]
[1736864030811,0.05279458,3209.2,3208.6,0.03116131]
[1736864031124,0.8029,3209.3,3208.6,0.03116131]
[1736864031366,0.05336173,3209.2,3208.6,0.03116131]
[1736864031738,0.8029,3209.3,3208.6,0.03116131]
[1736864032059,0.05331565,3209.2,3208.6,0.03116131]
[1736864032426,0.8029,3209.3,3208.6,0.03116131]
[1736864032769,0.05201514,3209.2,3208.6,0.03116131]
[1736864033127,0.8029,3209.3,3208.6,2.99374543]
[1736864033439,0.8029,3209.3,3208.7,0.32931201]
[1736864033629,0.8029,3209.3,3208.8,0.03115896]
[1736864033828,0.05249953,3209.2,3208.8,0.03115896]
[1736864034141,0.8029,3209.3,3208.8,0.03115896]
[1736864034470,0.05249953,3209.2,3208.8,0.03115896]
[1736864034673,0.05249953,3209.2,3208.7,0.32931201]
[1736864034824,0.8029,3209.3,3208.5,0.29937466]
[1736864035229,0.05252151,3209.2,3208.5,0.29937466]
[1736864035729,0.8029,3209.3,3208.6,0.03115901]
[1736864035937,0.05252151,3209.2,3208.6,0.03115901]
[1736864036146,0.8029,3209.3,3208.6,0.03115901]
[1736864036360,0.05251711,3209.2,3208.6,0.03115901]
[1736864036529,0.8029,3209.3,3208.6,0.03115901]
[1736864036865,0.05249953,3209.2,3208.6,0.03115901]
[1736864037269,0.8029,3209.3,3208.6,0.03115901]
[1736864037625,0.05248634,3209.2,3208.6,0.03115901]
[1736864038066,0.8029,3209.3,3208.6,0.03115901]
[1736864038472,0.05249073,3209.2,3208.6,0.03115901]
[1736864038844,0.8029,3209.3,3208.6,0.03115901]
[1736864039375,0.05063979,3209.2,3208.6,0.03115901]
[1736864039779,0.8029,3209.3,3208.6,0.03115901]
[1736864040144,0.0506354,3209.2,3208.6,0.03115901]
[1736864040365,0.8029,3209.3,3208.6,0.03115901]
[1736864040543,0.0506354,3209.2,3208.6,0.03115901]
[1736864040902,0.8029,3209.3,3208.6,0.03115901]
[1736864041247,0.0506354,3209.2,3208.5,0.29937466]
[1736864041458,0.0506354,3209.2,3208.6,0.17952028]
[1736864041628,0.8029,3209.3,3208.6,0.17952028]
[1736864041963,0.0506354,3209.2,3208.6,0.17952028]
[1736864042202,0.7672,3209.1,3208.0,0.7557]
[1736864042366,0.7672,3208.9,3207.6,1.11007535]
[1736864042528,0.7672,3208.7,3207.6,0.35437535]
[1736864042861,2.96258412,3208.9,3207.3,0.7557]
[1736864042862,0.7672,3208.5,3207.3,0.7557]
[1736864043080,0.7672,3208.5,3207.1,2.96258412]
[1736864043081,0.79843854,3208.4,3207.1,2.96258412]
[1736864043230,0.84945222,3208.4,3207.0,1.08153835]
[1736864043569,0.7672,3208.1,3207.0,0.32583835]
[1736864043765,0.79843854,3208.0,3207.0,0.32583835]
[1736864043940,0.79843854,3208.0,3206.6,3.0]
[1736864044138,0.79843854,3208.0,3206.7,0.59625841]
[1736864044139,0.7672,3207.8,3206.7,0.59625841]
[1736864044390,0.7672,3207.8,3206.9,3.0]
[1736864044683,0.05098508,3207.7,3207.0,0.7868739]
[1736864044847,0.7672,3207.8,3207.0,0.7868739]
[1736864045163,0.05071921,3207.7,3207.0,0.7868739]
[1736864045460,0.7672,3207.8,3207.1,0.37868739]
[1736864045660,0.05064743,3207.6,3207.1,0.37868739]
[1736864045865,0.05071921,3207.7,3207.2,0.0311731]
[1736864046034,0.7672,3207.8,3207.2,0.0311731]
[1736864046363,0.05071921,3207.7,3207.2,0.28744585]
[1736864046567,0.7672,3207.8,3207.2,0.4813684]
[1736864046761,0.7672,3207.8,3207.3,0.22995261]
[1736864046969,0.05071921,3207.7,3207.3,0.22995261]
[1736864047164,0.7672,3207.8,3207.3,0.22995261]
[1736864047465,0.05064571,3207.7,3207.4,0.28743963]
[1736864047760,0.7672,3207.8,3207.4,0.28743963]
[1736864047961,0.05059842,3207.6,3207.4,0.28743963]
[1736864048361,0.7672,3207.8,3207.4,0.28743963]
[1736864048865,0.05067021,3207.7,3207.5,0.28743963]
[1736864049048,0.7672,3207.8,3207.5,0.28743963]
[1736864049293,0.04883439,3207.6,3207.5,0.28743963]
[1736864049454,0.7672,3207.8,3207.5,0.28743963]
[1736864049650,0.0489538,3207.6,3207.5,0.28743963]
[1736864049842,0.7672,3207.8,3207.5,0.28743963]
[1736864050039,0.049003,3207.6,3207.3,0.49107599]
[1736864050253,0.7672,3207.8,3207.3,0.45990341]
[1736864050454,0.04893122,3207.5,3207.3,0.45990341]
[1736864050658,0.7672,3207.8,3207.4,0.23037075]
[1736864052033,0.7672,3207.8,3207.3,0.45990341]
[1736864052469,0.7672,3208.3,3207.8,3.0]
[1736864052678,0.7672,3208.8,3208.2,2.96258412]
[1736864052978,0.7672,3210.0,3208.3,0.03116175]
[1736864053146,0.255,3209.9,3208.5,2.96258412]
[1736864053346,0.03123854,3209.8,3208.6,0.58115731]
[1736864053692,0.03123854,3209.8,3208.6,1.3294672]
[1736864053988,0.7672,3209.7,3208.7,0.42920513]
[1736864054189,0.03123854,3209.6,3208.6,0.74830989]
[1736864054692,0.7672,3209.7,3208.8,3.71828412]
[1736864054850,0.7672,3209.7,3208.9,0.55]
[1736864055185,0.7672,3209.7,3208.6,0.77946618]
[1736864055186,0.7672,3209.7,3208.6,0.46026454]
[1736864056046,0.7672,3209.7,3208.7,0.03115784]
[1736864056245,0.0454387,3209.6,3208.7,0.03115784]
[1736864056449,0.7672,3209.7,3208.7,0.03115784]
[1736864056679,0.04536697,3209.5,3208.7,0.03115784]
[1736864056972,0.7672,3209.7,3208.7,0.6866092]
[1736864057374,0.0454387,3209.6,3208.8,0.03115783]
[1736864057570,0.7672,3209.7,3208.8,0.03115783]
[1736864057764,0.7672,3209.7,3208.8,2.99374195]
[1736864057952,0.0454387,3209.6,3208.8,2.99374195]
[1736864058169,0.0454387,3209.6,3208.9,0.36803511]
[1736864058368,0.7672,3209.7,3209.0,0.03115526]
[1736864058894,0.76151432,3209.7,3209.0,0.03115526]
[1736864059257,0.76151432,3209.7,3208.9,0.36803511]
[1736864061181,0.76151432,3209.7,3209.0,0.03115507]
[1736864061893,0.255,3210.8,3209.4,2.96258412]
[1736864062196,0.79303854,3210.7,3209.5,0.29625841]
[1736864062384,0.83768422,3210.7,3209.1,6.87135412]
[1736864062700,0.83768422,3210.7,3209.2,3.0]
[1736864063072,0.83768422,3210.7,3209.3,0.03115217]
[1736864063268,0.83768422,3210.7,3209.2,3.0]
[1736864063486,0.7618,3210.5,3209.3,0.98713541]
[1736864063681,0.03123854,3210.4,3209.3,0.98713541]
[1736864063888,0.04572243,3210.4,3209.4,0.03115216]
[1736864064087,0.07696097,3210.4,3209.4,0.03115216]
[1736864064686,0.04572243,3210.4,3209.4,3.54373628]
[1736864064895,0.04572243,3210.4,3209.5,0.45308717]
[1736864065065,0.7618,3210.5,3209.7,0.7927]
[1736864065265,0.04548347,3210.3,3209.8,0.03114905]
[1736864065500,0.7618,3210.5,3209.8,0.03114905]
[1736864065700,0.0452923,3210.2,3209.8,0.03114905]
[1736864066009,0.7618,3210.5,3209.8,0.03114905]
[1736864066568,0.04659187,3210.4,3209.8,0.03114905]
[1736864066902,0.7618,3210.5,3209.7,0.7927]
[1736864067269,0.04659187,3210.4,3209.7,0.7927]
[1736864067709,0.7618,3210.5,3209.7,0.7927]
[1736864067998,0.04652021,3210.3,3209.7,0.7927]
[1736864068300,0.7618,3210.5,3209.7,0.7927]
[1736864068515,0.7618,3210.5,3209.8,0.03114757]
[1736864068700,0.04659187,3210.4,3209.8,0.03114757]
[1736864069005,0.7618,3210.5,3209.8,0.03114757]
[1736864069379,0.04662127,3210.3,3209.8,0.03114757]
[1736864069576,0.7618,3210.8,3209.8,3.03114757]
[1736864069799,0.7618,3210.8,3209.9,0.99019117]
[1736864070006,0.04717151,3210.7,3210.0,0.03114516]
[1736864070369,0.7618,3210.8,3209.9,0.99019117]
[1736864070562,0.7618,3210.8,3209.8,3.03114518]
[1736864070768,0.04551886,3210.7,3209.8,3.0]
[1736864070998,0.04551886,3210.7,3209.9,0.98707641]
[1736864071299,0.7618,3210.8,3210.0,0.03114516]
[1736864071470,0.04544721,3210.6,3210.0,0.03114516]
[1736864071670,0.7618,3210.8,3210.0,0.03114516]
[1736864071888,0.04537556,3210.5,3210.0,0.03114516]
[1736864072087,0.7618,3210.8,3210.0,0.03114516]
[1736864072339,0.0453039,3210.4,3210.0,0.03114516]
[1736864072547,0.7618,3210.8,3210.0,0.03114516]
[1736864072945,0.04561549,3210.7,3210.0,0.03114516]
[1736864073141,0.04561549,3210.7,3210.0,2.99372928]
[1736864073345,0.7618,3210.8,3210.1,0.39808057]
[1736864073732,0.04561549,3210.7,3210.2,0.03114453]
[1736864074112,0.7618,3210.8,3210.2,0.03114453]
[1736864074334,0.7618,3210.8,3210.1,0.39808057]
[1736864074540,0.04649592,3210.7,3209.9,0.98707641]
[1736864074732,0.07773446,3210.7,3209.7,0.7927]
[1736864074936,0.07773446,3210.7,3209.8,0.03114787]
[1736864075154,0.7618,3210.8,3209.8,3.03114787]
[1736864075352,0.04652092,3210.6,3209.8,3.03114787]
[1736864075553,0.7618,3210.8,3209.8,3.03114787]
[1736864075718,0.7618,3210.8,3209.9,0.6786432]
[1736864075918,0.04659254,3210.7,3209.9,0.6786432]
[1736864076479,0.7813,3210.6,3209.9,0.6786432]
[1736864076640,0.7813,3210.4,3209.4,0.7516]
[1736864077156,0.04664153,3210.3,3209.4,0.7516]
[1736864077562,0.7813,3210.4,3209.4,0.7516]
[1736864079838,0.04632585,3210.3,3209.4,0.7516]
[1736864080046,0.04632585,3210.3,3209.5,0.03115064]
[1736864080832,0.7813,3210.2,3209.3,0.28569005]
[1736864081166,0.7813,3210.0,3209.3,0.28569005]
[1736864081531,0.04591704,3209.9,3209.3,0.28569005]
[1736864082032,0.04591704,3209.9,3209.2,0.48884214]
[1736864082231,0.7813,3210.0,3209.2,0.03115432]
[1736864082667,0.7813,3210.0,3209.1,3.54373843]
[1736864082871,0.7813,3210.9,3209.4,3.71418412]
[1736864083033,0.04550376,3209.9,3209.4,0.7516]
[1736864083232,0.7813,3210.0,3209.2,3.38294285]
[1736864083433,0.7813,3210.0,3209.5,0.28569005]
[1736864083733,0.04537421,3209.9,3209.5,0.28569005]
[1736864084333,0.04537421,3209.9,3209.2,3.84063067]
[1736864084646,0.04537421,3209.9,3209.3,0.38406307]
[1736864084840,0.04537421,3209.9,3209.0,0.45768782]
[1736864085043,0.7813,3210.0,3209.0,0.45768782]
[1736864085648,0.7813,3210.0,3209.1,0.7444533]
[1736864086235,0.7813,3210.0,3209.2,0.03115358]
[1736864086430,0.04513418,3209.9,3209.2,3.03115358]
[1736864086671,0.7813,3210.0,3209.4,3.78188412]
[1736864086974,0.7813,3210.0,3209.3,0.6738191]
[1736864087470,0.04512136,3209.9,3209.2,3.7444533]
[1736864087633,0.04512136,3209.9,3209.3,0.367065]
[1736864087834,0.78,3209.8,3209.3,0.367065]
[1736864088079,0.03123854,3209.7,3209.3,0.65383048]
[1736864088234,0.07633601,3209.7,3209.3,0.65383048]
[1736864088569,0.04509747,3209.7,3209.3,0.65383048]
[1736864088777,0.04509747,3209.7,3209.4,0.03115492]
[1736864088938,0.78,3209.8,3209.4,0.03115492]
[1736864089133,0.04489995,3209.6,3209.4,0.03115492]
[1736864089470,0.78,3209.8,3209.1,0.45768782]
[1736864089665,0.04497504,3209.5,3209.1,0.45768782]
[1736864089869,0.78,3209.8,3209.2,0.0311549]
[1736864090031,0.04490336,3209.4,3209.2,0.0311549]
[1736864090253,0.78,3209.8,3209.2,0.8504549]
[1736864090432,0.78,3209.8,3209.2,0.8193]
[1736864090665,0.04511838,3209.7,3209.2,0.8193]
[1736864090972,0.78,3209.8,3209.2,0.8193]
[1736864091189,0.78,3209.8,3209.3,0.28702434]
[1736864091392,0.04502055,3209.7,3209.3,0.28702434]
[1736864091895,0.78,3209.8,3209.3,0.44654076]
[1736864092059,0.04494887,3209.6,3209.3,0.28702434]
[1736864092254,0.78,3209.8,3209.3,0.28702434]
[1736864092473,0.04487719,3209.5,3209.3,0.28702434]
[1736864092668,0.78,3209.8,3209.3,0.31817898]
[1736864092874,0.04480551,3209.4,3209.3,0.31817898]
[1736864093071,0.78,3209.8,3209.3,0.03115464]
[1736864093272,0.78,3210.2,3209.4,3.78188412]
[1736864093557,0.78,3210.2,3209.5,0.03115062]
[1736864094186,0.04439943,3210.1,3209.3,0.35437388]
[1736864094398,0.04439943,3210.1,3209.4,0.03115058]
[1736864094573,0.78,3211.1,3209.7,3.78188412]
[1736864094806,1.034,3211.1,3209.8,0.0311464]
[1736864095174,0.04535119,3211.0,3209.8,0.0311464]
[1736864095523,0.04535119,3211.0,3209.9,0.28695554]
[1736864095685,0.07658973,3211.0,3209.9,0.28695554]
[1736864096190,0.07658973,3211.0,3209.9,0.73960829]
[1736864096497,0.07658973,3211.0,3210.0,0.31810196]
[1736864096697,0.78,3210.8,3210.0,0.28695554]
[1736864096897,0.03123854,3210.7,3210.0,0.28695554]
[1736864097199,0.07705264,3210.7,3210.0,0.28695554]
[1736864097389,0.78,3210.6,3210.0,0.28695554]
[1736864097607,0.03123854,3210.5,3210.0,0.28695554]
[1736864097794,0.07695828,3210.5,3209.6,0.367065]
[1736864097977,0.07695828,3210.5,3209.7,0.03114972]
[1736864098470,0.04571974,3210.5,3209.7,0.03114972]
[1736864098893,0.04571974,3210.5,3209.5,0.03114972]
[1736864099505,0.04571974,3210.5,3209.9,0.55]
[1736864099667,0.78,3211.0,3210.0,0.03114322]
[1736864099862,0.04484334,3210.4,3210.0,0.03114322]
[1736864100062,0.78,3211.0,3209.9,0.58114332]
[1736864100307,0.04493887,3210.3,3209.9,0.58114332]
[1736864100468,0.03123854,3210.9,3209.8,0.8193]
[1736864100666,0.04497264,3210.2,3209.6,0.28692768]
[1736864100875,0.03123854,3210.7,3209.7,0.367065]
[1736864101204,0.82266167,3210.1,3209.7,0.65399268]
[1736864101403,0.7773,3210.1,3209.7,0.65399268]
[1736864101620,0.7773,3210.6,3209.7,0.65399268]
[1736864101782,0.03123854,3210.5,3209.7,0.65399268]
[1736864102103,0.04562527,3210.5,3209.8,0.28692768]
[1736864103103,0.04562527,3210.5,3209.9,0.03114944]
[1736864103409,0.04562527,3210.5,3209.9,0.31807712]
[1736864103928,0.04562527,3210.5,3209.9,0.28692768]
[1736864104068,0.04562527,3210.5,3209.9,0.31807713]
[1736864104270,0.04562527,3210.5,3210.0,0.28692768]
[1736864104767,0.7773,3210.4,3210.0,0.28692768]
[1736864105069,3.7773,3210.2,3210.0,0.28692768]
[1736864105269,1.53517632,3210.1,3210.0,0.28692768]
[1736864105466,1.53517632,3210.1,3209.6,0.367065]
[1736864105667,1.53517632,3210.1,3209.3,0.47846996]
[1736864105668,0.254,3210.0,3209.3,0.47846996]
[1736864105907,0.04487943,3209.9,3209.3,0.47846996]
[1736864106067,0.04487943,3209.9,3209.4,0.03115733]
[1736864106272,0.254,3210.0,3209.5,1.11369054]
[1736864106473,0.254,3210.0,3209.6,0.03115161]
[1736864106687,0.254,3210.0,3209.5,1.14484211]
[1736864107405,0.254,3210.0,3209.6,0.78983489]
[1736864107612,0.254,3210.0,3209.6,0.95100838]
[1736864108415,0.7773,3210.8,3209.7,2.96258412]
[1736864108608,0.7773,3210.8,3209.9,0.8219]
[1736864108809,0.04433764,3210.7,3210.0,3.54372851]
[1736864109018,1.0303,3211.1,3210.0,3.54372851]
[1736864109197,1.0303,3211.1,3210.1,0.43656285]
[1736864109393,0.04569669,3211.0,3210.2,0.0311424]
[1736864109851,0.04569669,3211.0,3210.3,0.29179054]
[1736864110019,0.04569669,3211.0,3210.4,0.03114241]
[1736864110325,0.04569669,3211.0,3210.3,0.29179054]
[1736864110326,0.07693523,3211.0,3210.3,0.29179054]
[1736864110491,0.03123854,3211.0,3210.3,0.29179054]
[1736864110693,0.7773,3210.8,3210.3,0.29179054]
[1736864110917,0.7773,3210.8,3210.2,0.93355847]
[1736864110918,0.7773,3210.5,3210.2,0.4666651]
[1736864111221,0.766,3210.3,3210.2,0.4666651]
[1736864111594,0.80977608,3210.3,3210.2,0.4666651]
[1736864111780,0.80977608,3210.3,3210.1,0.46689337]
[1736864112181,0.04377608,3210.3,3210.1,0.46689337]
[1736864112386,0.766,3210.2,3210.1,0.46689337]
[1736864112623,0.766,3210.2,3209.7,0.46689337]
[1736864112914,0.03123854,3210.1,3209.7,0.46689337]
[1736864113117,0.03123854,3210.1,3209.7,0.93355847]
[1736864113899,0.03123854,3210.1,3209.7,0.4666651]
[1736864114100,0.04291877,3210.0,3209.7,0.4666651]
[1736864114484,0.766,3209.9,3209.2,1.22529006]
[1736864114681,0.03123854,3209.8,3209.2,1.22529006]
[1736864115127,0.03123854,3209.8,3209.3,0.29173159]
[1736864115299,0.04441603,3209.7,3209.3,0.29173159]
[1736864115487,0.03123854,3209.8,3209.3,0.29173159]
[1736864115828,0.04251436,3209.7,3209.3,0.29173159]
[1736864116343,0.04245886,3209.6,3209.3,0.29173159]
[1736864116493,0.04253061,3209.7,3209.3,0.29173159]
[1736864116698,0.03123854,3209.8,3208.9,0.93355847]
[1736864116888,0.03123854,3209.8,3209.0,0.4666651]
[1736864118121,0.03123854,3209.8,3209.1,0.29165035]
[1736864118323,0.04225044,3209.7,3209.1,0.29165035]
[1736864118526,0.759,3209.6,3209.1,0.29165035]
[1736864118742,0.04210693,3209.5,3209.1,0.29165035]
[1736864118899,1.012,3209.4,3209.1,0.29165035]
[1736864119223,0.07316373,3209.3,3209.1,0.29165035]
[1736864119652,0.07316373,3209.3,3208.6,0.4666651]
[1736864119931,0.04192519,3209.3,3208.7,0.03116153]
[1736864120226,1.012,3209.4,3208.7,0.03115836]
[1736864120426,0.253,3209.4,3208.7,0.03115836]
[1736864120793,0.253,3209.4,3208.5,6.89595412]
[1736864120794,0.253,3209.4,3208.8,0.4666651]
[1736864121255,0.03123854,3209.6,3208.9,0.29154699]
[1736864121399,0.04181092,3209.3,3209.0,0.8167]
[1736864121600,0.759,3209.7,3209.1,0.03115588]
[1736864121827,0.759,3209.7,3209.0,0.8167]
[1736864122196,0.07492736,3209.6,3208.9,0.29154699]
[1736864122516,0.07492736,3209.6,3208.6,0.8167]
[1736864122517,0.03123854,3209.6,3208.6,0.8167]
[1736864122811,0.03123854,3209.6,3208.6,1.19837]
[1736864123333,0.03123854,3209.6,3208.6,0.8167]
[1736864123334,0.759,3209.5,3208.6,0.8167]
[1736864123553,0.03123854,3209.4,3208.7,0.29143671]
[1736864124052,0.04385912,3209.3,3208.7,0.29143671]
[1736864124397,0.04385912,3209.3,3208.5,0.29143671]
[1736864125104,0.04385912,3209.3,3208.5,0.32259833]
[1736864126097,0.04385912,3209.3,3208.6,0.29143671]
[1736864126310,0.03123854,3209.4,3208.6,0.29143671]
[1736864126967,0.759,3209.5,3208.6,0.29143671]
[1736864127136,0.759,3209.5,3208.8,2.96258412]
[1736864127346,0.04370072,3209.4,3208.9,0.03115778]